[Event "Rohde op 09th"]
[Site "Sautron"]
[Date "2009.10.27"]
[Round "5"]
[White "Berbatov, Kiprian"]
[Black "Haub, Thorsten Michael"]
[Result "0-1"]
[ECO "B06"]
[WhiteElo "2457"]
[BlackElo "2478"]
[Annotator "RR"]
[PlyCount "125"]
[EventDate "2009.10.24"]
[EventType "swiss"]
[EventRounds "9"]
[EventCountry "FRA"]
[SourceTitle "EXT 2010"]
[Source "ChessBase"]
[SourceDate "2010.11.25"]
[SourceVersion "1"]
[SourceVersionDate "2010.11.25"]
[SourceQuality "1"]
[TimeControl "6000"]
[WhiteClock "0:00:03"]
[BlackClock "0:00:30"]

1. e4 g6 2. d4 Bg7 3. Be3 d6 4. h4 {Rarement joué aussi tôt} (4. Nc3) 4... h6 (
4... h5 {[%csl Rg5]} 5. Nc3 c6 6. Qd2 b5 7. Nh3 {[%cal Gh3g5];Radulov,I (2490)
-Forintos,G (2495) Siegen ol (Men) fin-A 1970 (4) 1/2}) 5. Qd2 a6 6. c4 $146 (
6. f3 {Kotter,R (2265)-Haub,T (2365) BL2-West 9495 1994 (6.2) 1/2}) 6... Nd7 7.
Nc3 e6 8. f4 {Les blancs jouent de manière trés agressive avec ce centre
élargi auquel s'joute la poussée h4} Ndf6 {[%cal Gg8e7]} 9. Nf3 (9. Be2 $5 {
[%cal Gh4h5]}) 9... h5 10. d5 exd5 11. cxd5 Nh6 {[%csl Gg4]} 12. g3 (12. Bd4
O-O 13. O-O-O $16) 12... O-O 13. Bg2 (13. Ng5) 13... Re8 14. Ng5 $36 Nfg4 15.
Bg1 (15. Bd4 Bxd4 16. Qxd4 Nf5 $1 $132 {[%csl Rg3]}) 15... b5 16. O-O-O Bd7 17.
Bd4 Bxd4 18. Qxd4 Qf6 $1 19. Qxf6 Nxf6 20. b4 Bg4 21. Rd4 (21. Rde1 $5 {
[%cal Ge4e5,Gh1f1]}) 21... Nd7 $5 {[%cal Gd7b6,Gb6c4]} 22. Nb1 {[%csl Gc4]
[%cal Gb1d2] anticipant Nb6c4} Nb6 (22... f6 23. Nf3 f5 $1 24. Ng5 fxe4 25.
Bxe4 Nf5 26. Bxf5 Bxf5 $15) 23. Nd2 a5 $36 24. Kb1 axb4 25. Rxb4 (25. Rc1 {
[%cal Gc1c7]}) 25... Nxd5 $1 {[%cal Ge8e2,Ge2g2,Ge2d2]} 26. exd5 Re2 $40 27.
Nde4 Rxg2 28. Rb2 Rxb2+ 29. Kxb2 Kg7 30. Rc1 Ra7 $17 31. Kb3 Bd7 32. Nc3 c5 33.
dxc6 Bxc6 34. Rd1 Nf5 35. Nge4 Bxe4 36. Nxe4 Re7 (36... Ra4 $5 37. Nxd6 Nxg3)
37. Nxd6 Nxd6 38. Rxd6 Re3+ 39. Kb4 Rxg3 40. Kxb5 Ra3 41. Rd2 {La meilleure
structure donne un trés léger avantage aux noirs mais les chances de gains
sont réduites. Au surplus la Ra3 est assez mal placée pour lutter face au P
passé "a"} Kf6 42. Kb4 $1 {[%cal Ga2a4] gagne un tempo important sur la R tout
en protégeant le P passé} Rh3 43. a4 {[%csl Ga4][%cal Ga4a8]} Rxh4 44. a5 Rxf4+
45. Kb5 Re4 46. a6 h4 47. Rd8 (47. a7 $5 Re8 48. Rf2+ Kg5 49. Rxf7 h3 50. Re7
$1 {[%csl Ga7][%cal Ga7a8]}) (47. Rf2+ Kg5 48. a7 Re8 49. Rxf7 h3 50. Rb7 {
[%cal Gb7b8]} (50. Rh7 $2 Kg4) 50... h2 $1) 47... Re7 48. Kb6 {les blancs vont
forcer la promotion mais le K blanc ne pourra pas revenir ensuite défendre
l'aile-roi} g5 $17 49. a7 Rxa7 $1 50. Kxa7 g4 $19 51. Rh8 h3 52. Kb6 Ke5 $19
53. Kc5 f5 54. Kc4 Ke4 55. Kc3 Ke3 56. Rh4 Kf3 57. Kd4 Kg3 58. Rh5 h2 59. Ke5
f4 60. Ke4 f3 61. Ke3 Kg2 62. Rh4 g3 63. Kd4 0-1

[Event "Sautron op 14th"]
[Site "Sautron"]
[Date "2014.10.25"]
[Round "3"]
[White "Terrieux, Kevin"]
[Black "Haub, Thorsten Michael"]
[Result "1-0"]
[ECO "B06"]
[WhiteElo "2409"]
[BlackElo "2444"]
[Annotator "RR"]
[PlyCount "74"]
[EventDate "2014.10.26"]
[EventType "swiss"]
[EventRounds "9"]
[EventCountry "FRA"]
[SourceTitle "EXT 2015"]
[Source "ChessBase"]
[SourceDate "2014.11.20"]
[SourceVersion "1"]
[SourceVersionDate "2014.11.20"]
[SourceQuality "1"]
[TimeControl "40/5400+30:1800+30"]
[WhiteClock "0:03:56"]

1. d4 {[%emt 0:01:46]} g6 {[%emt 0:00:00]} 2. e4 {[%emt 0:00:32]} Bg7 {[%emt 0:
00:00]} 3. Nc3 {[%emt 0:00:09]} d6 {[%emt 0:00:07]} 4. Be3 {[%emt 0:00:43]} a6
{[%emt 0:00:07]} 5. Qd2 {[%emt 0:00:20]} Nd7 {[%emt 0:00:06]} 6. h4 $1 {
[%emt 0:00:51]} h6 {[%emt 0:00:06] Plus souple que la ligne principale h5 qui
affaiblit la case "g5" mais le oo sera difficile à réaliser} (6... h5 7. Nh3
{[%csl Gg5]}) 7. O-O-O {[%emt 0:01:21]} (7. f3 b5 8. a4 b4 9. Nd1 Rb8 10. Ne2
Ngf6 11. Nf4 e5 12. dxe5 Nxe5 13. Nf2 O-O 14. Rd1 Qe7 15. Be2 Rd8 16. Nd5 Nxd5
17. exd5 Re8 18. f4 Nd7 19. Rh3 Nc5 20. Rf3 Bxb2 21. Kf1 Bc3 22. Qc1 Qxh4 23.
Bd4 Bxd4 24. Rxd4 Qf6 25. Qd2 b3 26. cxb3 Nxb3 27. Rxb3 Rxb3 28. Ne4 Qh4 29.
Bd3 Bf5 30. Nf2 Bxd3+ {0-1 (30) Volokitin,A (2638)-Svidler,P (2753) Dubai 2014}
) 7... b5 {[%emt 0:00:53]} 8. f3 {[%emt 0:00:44]} Nb6 {[%emt 0:09:24]} (8...
Bb7) 9. d5 {[%emt 0:28:25]} Qd7 $146 {[%emt 0:18:34]} (9... Bb7 10. Bd4 Nf6 11.
h5 g5 12. Qf2 Rg8 13. Nge2 Qd7 14. Ng3 b4 15. Nb1 Na4 16. Nf5 e5 17. dxe6 fxe6
18. Nxg7+ Qxg7 19. b3 Nc3 20. Nxc3 bxc3 21. Qe1 Qf7 22. g4 O-O-O 23. Qxc3 Nd7
24. Be2 c5 25. Kb1 Kb8 26. Bg1 Ne5 27. Bxc5 {1-0 (27) Peptan,C (2460)-Ivanovic,
J (2061) Belgrade 2001}) 10. Bd4 {[%emt 0:13:50]} Nf6 {[%emt 0:00:26]} 11. g4 {
[%emt 0:08:37]} c5 {[%emt 0:04:52]} 12. dxc6 {[%emt 0:00:12]} Qxc6 {[%emt 0:00:
07]} 13. Nh3 {[%emt 0:03:28]} (13. Kb1) 13... Bb7 {[%emt 0:28:54] Joué après
une très longue réflexion} 14. g5 {[%emt 0:04:13]} (14. Nf4 $5 O-O-O (14...
e5 15. Bxb6 Qxb6 16. Nfd5) 15. Nfd5) 14... hxg5 {[%emt 0:00:38]} 15. hxg5 {
[%emt 0:00:15]} Nh5 {[%emt 0:00:05]} 16. Nf2 {[%emt 0:10:35]} Bxd4 {[%emt 0:02:
20]} 17. Qxd4 {[%emt 0:00:08]} O-O-O $132 {[%emt 0:00:26]} 18. Nd3 {[%emt 0:06:
05]} e5 {[%emt 0:01:29]} 19. Qg1 {[%emt 0:02:20]} Kb8 {[%emt 0:08:04]} 20. Bh3
{[%emt 0:02:11]} a5 {[%emt 0:06:38]} 21. a3 {[%emt 0:05:11]} Bc8 {[%emt 0:03:
16]} (21... Nc4 $142 {[%csl Ra3,Rc3][%cal Gc4a3]}) 22. Bg4 {[%emt 0:02:20]} Be6
{[%emt 0:05:08]} 23. Bxh5 {[%emt 0:00:50]} gxh5 {[%emt 0:00:08]} 24. f4 {
[%emt 0:00:10]} Bg4 {[%emt 0:00:24]} 25. Rf1 {[%emt 0:00:07]} exf4 {[%emt 0:02:
40]} 26. Rxf4 {[%emt 0:00:31]} (26. Nxf4 b4) 26... Be6 {[%emt 0:00:41]} 27. Qd4
{[%emt 0:01:46]} Rc8 {[%emt 0:02:22]} 28. g6 $1 {[%emt 0:00:23]} fxg6 {[%emt 0:
00:48]} 29. Rf6 {[%emt 0:00:05]} Rhe8 {[%emt 0:01:45]} 30. Nf4 {[%emt 0:00:06]}
Nc4 {[%emt 0:02:41] Trop tard} 31. Rxe6 {[%emt 0:01:07]} Rxe6 {[%emt 0:00:14]}
32. Nxe6 {[%emt 0:00:05]} b4 {[%emt 0:00:06]} 33. axb4 {[%emt 0:00:44]} axb4 {
[%emt 0:00:11]} 34. Nd5 {[%emt 0:02:32]} Qd7 {[%emt 0:02:45]} 35. b3 {[%emt 0:
00:59]} Qxe6 {[%emt 0:00:34]} 36. bxc4 {[%emt 0:00:07]} Rc6 {[%emt 0:00:18]}
37. Rf1 {[%emt 0:00:46]} Kb7 {[%emt 0:01:13]} 1-0

[Event "Rohde op 12th"]
[Site "Sautron"]
[Date "2012.10.31"]
[Round "6"]
[White "Le Roux, Jean Pierre"]
[Black "Haub, Thorsten Michael"]
[Result "1-0"]
[ECO "B06"]
[WhiteElo "2563"]
[BlackElo "2469"]
[Annotator "RR"]
[PlyCount "79"]
[EventDate "2012.10.27"]
[EventType "swiss"]
[EventRounds "9"]
[EventCountry "FRA"]
[SourceTitle "EXT 2014"]
[Source "ChessBase"]
[SourceDate "2013.11.20"]
[SourceVersion "1"]
[SourceVersionDate "2013.11.20"]
[SourceQuality "1"]
[TimeControl "40/5400+30:1800+30"]
[WhiteClock "1:30:00"]
[BlackClock "1:30:00"]

1. e4 {[%emt 0:01:10]} g6 {[%emt 0:00:00]} 2. d4 {[%emt 0:02:00]} Bg7 {[%emt 0:
00:00]} 3. Nf3 {[%emt 0:01:25]} d6 {[%emt 0:00:06]} 4. Bc4 {[%emt 0:02:28]} a6
{[%emt 0:00:44]} (4... Nf6) (4... c6) 5. O-O {[%emt 0:03:33]} e6 {[%emt 0:00:
21][%cal Gd6d5] Sans surprise, l'allemand joue son ouverture favorite} 6. Bb3 {
[%emt 0:00:45]} Nd7 {[%emt 0:01:39]} 7. Nbd2 {[%emt 0:05:41]} Ne7 {[%emt 0:00:
36]} 8. Re1 {[%emt 0:00:46]} (8. c3) 8... O-O {[%emt 0:02:28]} 9. Nf1 $5 {
[%emt 0:03:58][%csl Gf5][%cal Gf1g3,Gf1e3]} c5 {[%emt 0:05:47]} 10. c3 {
[%emt 0:01:20]} b5 {[%emt 0:09:24]} 11. h4 $5 {[%emt 0:01:39]} (11. dxc5) (11.
Ng3) 11... h6 {[%emt 0:04:51]} 12. Ng3 {[%emt 0:06:57]} Qc7 $146 {[%emt 0:02:
45]} (12... c4 13. Bc2 e5 14. b3 Nb6 15. dxe5 dxe5 16. Ba3 Ra7 17. Qe2 Bg4 18.
Red1 Qc7 19. Bd6 Qc6 20. Qe3 Bxf3 21. Qxf3 h5 22. Qe3 Nbc8 23. Qc5 Qxc5 24.
Bxc5 Rc7 25. b4 Re8 26. a4 Nc6 27. axb5 {Bartel,M (2481)-Tikkanen,H (2338)/
Kochin 2004/CBM 103 ext/1/2-1/2 (53)}) 13. Be3 {[%emt 0:06:05]} Kh7 {[%emt 0:
04:16]} 14. h5 {[%emt 0:05:38]} c4 {[%emt 0:03:03]} (14... g5 15. Bxg5 $1 hxg5
16. Nxg5+ Kg8 17. h6 Bxh6 18. Qh5 $40 {[%csl Rg8]}) 15. Bc2 {[%emt 0:02:20]} (
15. hxg6+ fxg6 16. Bc2 {[%cal Ge4e5,Gf3h4]}) 15... e5 {[%emt 0:00:50]} 16. Nh2
$5 {[%emt 0:05:04][%csl Rh6][%cal Gh2g4,Gd1d2]} g5 {[%emt 0:13:12][%csl Gf5]}
17. f3 {[%emt 0:15:56]} (17. Ng4 Bb7 18. Qd2 Rac8 19. a4 $14) 17... Kg8 {
[%emt 0:01:48]} 18. Bf2 {[%emt 0:01:58]} Rb8 {[%emt 0:09:31]} 19. Ng4 {[%emt 0:
03:13][%csl Gf5][%cal Gg4e3,Ge3f5]} Nf6 {[%emt 0:01:32]} 20. Ne3 {[%emt 0:01:
00][%csl Gf5] Les Blancs continuent d'améliorer la position des pièces alors
que les Noirs sont privés de contre-jeu.} Rd8 {[%emt 0:02:37]} 21. Qe2 {
[%emt 0:06:35]} Be6 {[%emt 0:04:36]} 22. a4 {[%emt 0:01:54]} exd4 $6 {[%emt 0:
08:21] Abandonne le centre et la poussée d6d5 risque de provoquer la fermeture
du centre qui laissera les mains libres au GMI pour attaquer а l'aile-roi.} 23.
cxd4 {[%emt 0:00:33]} d5 {[%emt 0:01:33]} 24. e5 $1 {[%emt 0:06:02]} Nd7 {
[%emt 0:00:28]} 25. Ngf5 $16 {[%emt 0:02:37]} Nxf5 {[%emt 0:01:20]} 26. Nxf5 {
[%emt 0:00:22]} Bxf5 $1 {[%emt 0:05:12] Supprimant un attaquant dangereux
après la fermeture du centre.} 27. Bxf5 {[%emt 0:00:05]} Nf8 {[%emt 0:00:10]
[%cal Gf8e6]} 28. f4 $1 {[%emt 0:05:18] Si les Noirs ont le temps dejouer Ne6,
l'ouverture de l'aile-roi sera plus difficile} gxf4 {[%emt 0:02:27]} 29. Qg4 {
[%emt 0:01:03]} Kh8 {[%emt 0:01:37]} (29... Ne6 30. Bxe6 fxe6 31. Qxe6+ Kh8)
30. Bh4 $40 {[%emt 0:05:13][%cal Gh4f6]} Qb6 $2 {[%emt 0:01:23]} (30... Re8)
31. Qxf4 {[%emt 0:00:11]} Kg8 {[%emt 0:05:37]} 32. Ra3 $18 {[%emt 0:01:09]
[%csl Rg7,Rg8][%cal Ga3g3]} Ne6 {[%emt 0:01:33]} 33. Bxe6 {[%emt 0:00:09]} fxe6
{[%emt 0:00:24]} 34. Bxd8 {[%emt 0:01:14]} Rxd8 {[%emt 0:00:07]} 35. axb5 {
[%emt 0:01:16]} axb5 {[%emt 0:00:18]} 36. Rg3 {[%emt 0:00:28]} Rf8 {[%emt 0:00:
14]} 37. Qg4 {[%emt 0:00:26]} Rf7 {[%emt 0:00:38]} 38. Rf1 {[%emt 0:00:15]} Re7
{[%emt 0:00:27]} 39. Rf6 {[%emt 0:00:49]} b4 {[%emt 0:00:12]} 40. Rxh6 {
[%emt 0:00:00]} 1-0